fUST/lending_fUST_20260104
["ID","MTS","AMOUNT","RATE_DAILY","PERIOD"]
[400406489,1767520238939,-250.0,0.00011565,2]
[400406490,1767520238949,-250.0,0.00011565,2]
[400406491,1767520238958,-553.64373807,0.00011565,2]
[400406492,1767520238974,-2674.60743027,0.00011565,2]
[400406493,1767520238984,-291.78649388,0.00011686,2]
[400406494,1767520238994,-250.38013246,0.00011815,2]
[400406495,1767520239004,-1711.93382651,0.00011815,2]
[400406496,1767520239015,-122613.87461272,0.00012,2]
[400406497,1767520239025,-500.0,0.00012098,2]
[400406498,1767520239035,-414.07857712,0.00012113,2]
[400406499,1767520239045,-2773.56790519,0.00012113,2]
[400406500,1767520239054,-555.61200628,0.00012227,2]
[400406501,1767520239064,-500.0,0.00012235,2]
[400406502,1767520239074,-164.601,0.00012329,2]
[400406503,1767520239084,-615.38121499,0.00012329,2]
[400406504,1767520239094,-300.0,0.00012369,2]
[400406505,1767520239104,-300.0,0.00012369,2]
[400406506,1767520239114,-300.0,0.00012369,2]
[400406507,1767520239123,-300.0,0.00012369,2]
[400406508,1767520239133,-300.0,0.00012369,2]
[400406509,1767520239143,-300.0,0.00012369,2]
[400406510,1767520239154,-300.0,0.00012369,2]
[400406511,1767520239164,-300.0,0.00012369,2]
[400406512,1767520239175,-300.0,0.00012369,2]
[400406513,1767520239185,-300.0,0.00012369,2]
[400406514,1767520239195,-300.0,0.00012369,2]
[400406515,1767520239204,-300.0,0.00012369,2]
[400406516,1767520239214,-300.0,0.00012369,2]
[400406517,1767520239224,-300.0,0.00012369,2]
[400406518,1767520239234,-300.0,0.00012369,2]
[400406519,1767520239244,-600.0,0.00012369,2]
[400406520,1767520239254,-500.0,0.00012372,2]
[400406521,1767520239264,-201.25145523,0.00012509,2]
[400406522,1767520239275,-170.0,0.00012534,2]
[400406523,1767520239284,-420.0,0.00012534,2]
[400406524,1767520239294,-420.0,0.00012534,2]
[400406525,1767520239303,-295.28665735,0.00012536,2]
[400406526,1767520239313,-352.0,0.00012552,2]
[400406527,1767520239324,-420.0,0.00012553,2]
[400406528,1767520239334,-2220.22557709,0.00012604,2]
[400406529,1767520239344,-5978.2185065,0.00012623,2]
[400406530,1767520239354,-182.69934205,0.00012646,2]
[400406531,1767520239365,-153.33454002,0.00012646,2]
[400406532,1767520239375,-356.78587337,0.00012719,2]
[400406533,1767520239385,-256.03839047,0.00012731,2]
[400406534,1767520239396,-59190.53242891,0.0001287,2]
[400406535,1767520239406,-1992.5047007,0.00012973,2]
[400406536,1767520239417,-500.0,0.00013273,2]
[400406537,1767520239426,-444.5878929,0.00013298,2]
[400406538,1767520239436,-391.05402901,0.00013378,2]
[400406539,1767520239446,-4477.0,0.00013473,2]
[400406540,1767520239456,-2145.0,0.00013473,2]
[400406541,1767520239465,-628.0,0.00013473,2]
[400406542,1767520239475,-416.0,0.00013473,2]
[400406543,1767520239484,-244.884,0.00013473,2]
[400406544,1767520239494,-720.0,0.00013606,2]
[400406545,1767520239609,-1969.49,0.00013698,2]
[400406546,1767520239619,-1969.49,0.00013698,2]
[400406547,1767520239628,-1969.49,0.00013698,2]
[400406548,1767520239638,-1969.49,0.00013698,2]
[400406549,1767520239647,-1969.49,0.00013698,2]
[400406550,1767520239656,-1969.49,0.00013698,2]
[400406551,1767520239665,-1969.49,0.00013698,2]
[400406552,1767520239674,-1969.49,0.00013698,2]
[400406553,1767520239684,-1969.49,0.00013698,2]
[400406554,1767520239694,-1969.49,0.00013698,2]
[400406555,1767520239703,-1969.49,0.00013698,2]
[400406556,1767520239711,-1969.49,0.00013698,2]
[400406557,1767520239720,-1969.49,0.00013698,2]
[400406558,1767520239730,-500.0,0.00013698,2]
[400406559,1767520239740,-188.11386458,0.00013699,2]
[400406560,1767520239749,-1000.0,0.00013699,2]
[400406561,1767520239759,-978.769893,0.00013699,2]
[400406562,1767520239768,-502.2601968,0.00013699,2]
[400406563,1767520239778,-500.89475343,0.00013699,2]
[400406564,1767520239787,-501.00450759,0.00013699,2]
[400406565,1767520239796,-501.34906014,0.00013699,2]
[400406566,1767520239805,-500.54517436,0.00013699,2]
[400406567,1767520239814,-505.14600849,0.00013699,2]
[400406568,1767520239824,-500.81877837,0.00013699,2]
[400406569,1767520239834,-500.0,0.00013699,2]
[400406570,1767520239843,-443.89072638,0.00013699,2]
[400406571,1767520239856,-338.10821472,0.00013699,2]
[400406572,1767520239865,-501.0386878,0.00013699,2]
[400406573,1767520239875,-587.0,0.00013768,2]
[400406574,1767520239884,-587.0,0.00013768,2]
[400406575,1767520239893,-1969.49,0.0001382,2]
[400406576,1767520239905,-1000.0,0.00013821,2]
[400406577,1767520239914,-612.9443202,0.00014002,2]
[400406578,1767520239924,-1972.83142568,0.00014175,2]
[400406579,1767520239936,-3795.66285136,0.00014175,2]
[400406580,1767520239945,-1041.66666667,0.00014177,2]
[400406581,1767520239955,-1000.0,0.00014247,2]
[400406582,1767520239964,-5618.49427704,0.00014261,2]
[400406583,1767520239974,-364.49212635,0.00014368,2]
[400406584,1767520239985,-600.0,0.00014794,2]
[400406585,1767520240006,-1500.0,0.00014795,2]
[400406586,1767520240022,-1969.49,0.0001482,2]
[400406587,1767520240032,-500.0,0.00014855,2]
[400406588,1767520240041,-500.0,0.00014855,2]
[400406589,1767520240051,-500.0,0.00014855,2]
[400406590,1767520240061,-500.0,0.00014855,2]
[400406591,1767520240070,-500.0,0.00014855,2]
[400406592,1767520240080,-500.0,0.00014855,2]
[400406593,1767520240090,-500.0,0.00014855,2]
[400406594,1767520240099,-500.0,0.00014855,2]
[400406595,1767520240109,-500.0,0.00014855,2]
[400406596,1767520240120,-500.0,0.00014855,2]
[400406597,1767520240131,-500.0,0.00014855,2]
[400406598,1767520240140,-500.0,0.00014855,2]
[400406599,1767520240150,-500.0,0.00014855,2]
[400406600,1767520240159,-500.0,0.00014855,2]
[400406601,1767520240169,-500.0,0.00014855,2]
[400406602,1767520240179,-500.0,0.00014855,2]
[400406603,1767520240189,-492.69144023,0.00014855,2]
[400406604,1767520240198,-1969.49,0.00014881,2]
[400406605,1767520240207,-1969.49,0.00014881,2]
[400406606,1767520240218,-1969.49,0.00014881,2]
[400406607,1767520240228,-1969.49,0.00014881,2]
[400406608,1767520240239,-1969.49,0.00014881,2]
[400406609,1767520240248,-1969.49,0.00014881,2]
[400406610,1767520240259,-1969.49,0.00014881,2]
[400406611,1767520240268,-1969.49,0.00014881,2]
[400406613,1767520240278,-1969.52906722,0.00014881,2]
[400406614,1767520240288,-100000.0,0.00014882,2]
[400406615,1767520240298,-151.0,0.00014882,2]
[400406616,1767520240309,-151.0,0.00014882,2]
[400406617,1767520240319,-864.0,0.00014966,2]
[400406618,1767520240329,-168.0,0.0001501,2]
[400406619,1767520240338,-219.647133,0.00015068,2]
[400406620,1767520240348,-294.61635866,0.00015068,2]
[400406621,1767520240358,-500.0,0.000151,2]
[400406622,1767520240367,-823.0,0.00015123,2]
[400406623,1767520240377,-2000.0,0.00015342,2]
[400406624,1767520240387,-450.70633853,0.00015378,2]
[400406626,1767520240397,-7441.32570272,0.00015663,4]
[400406627,1767520240406,-600.0,0.0001578,2]
[400406629,1767520240416,-2508.75476455,0.0001589,2]
[400406631,1767520240426,-336.4711241,0.00015918,3]
[400406633,1767520240436,-600.93946268,0.00015945,2]
[400406635,1767520240447,-3000.0,0.00016,2]
[400406636,1767520240457,-3000.0,0.0001601,2]
[400406638,1767520240467,-3000.0,0.0001602,2]
[400406640,1767520240476,-3000.0,0.0001603,2]
[400406642,1767520240486,-3000.0,0.0001604,2]
[400406644,1767520240496,-3257.727172,0.0001605,2]
[400406645,1767520240505,-1060.98529515,0.00016109,2]
[400406647,1767520240515,-600.0,0.00016164,2]
[400406649,1767520240525,-244.08991876,0.00016438,3]
[400406650,1767520240535,-626.2,0.00016438,2]
[400406651,1767520240545,-627.70230132,0.00016438,2]
[400406652,1767520240567,-627.70230132,0.00016438,2]
[400406653,1767520240579,-627.70230132,0.00016438,2]
[400406654,1767520240590,-627.70230132,0.00016438,2]
[400406655,1767520240600,-627.70230132,0.00016438,2]
[400406656,1767520240611,-627.70230132,0.00016438,2]
[400406657,1767520240621,-627.70230132,0.00016438,2]
[400406658,1767520240632,-627.70230132,0.00016438,2]
[400406659,1767520240643,-627.70230132,0.00016438,2]
[400406660,1767520240652,-627.70230132,0.00016438,2]
[400406661,1767520240663,-627.70230132,0.00016438,2]
[400406662,1767520240673,-627.70230132,0.00016438,2]
[400406663,1767520240684,-627.70230132,0.00016438,2]
[400406664,1767520240694,-627.70230132,0.00016438,2]
[400406665,1767520240704,-627.70230132,0.00016438,2]
[400406666,1767520240714,-627.70230132,0.00016438,2]
[400406667,1767520240725,-627.70230132,0.00016438,2]
[400406668,1767520240736,-627.70230132,0.00016438,2]
[400406669,1767520240746,-627.70230132,0.00016438,2]
[400406670,1767520240756,-627.70230132,0.00016438,2]
[400406671,1767520240766,-627.70230132,0.00016438,2]
[400406672,1767520240776,-627.70230132,0.00016438,2]
[400406673,1767520240787,-627.70230132,0.00016438,2]
[400406675,1767520240798,-627.70230132,0.00016438,2]
[400406676,1767520240808,-627.70230132,0.00016438,2]
[400406678,1767520240819,-627.70230132,0.00016438,2]
[400406679,1767520240829,-627.70230132,0.00016438,2]
[400406682,1767520240840,-627.70230132,0.00016438,2]
[400406684,1767520240853,-627.70230132,0.00016438,2]
[400406686,1767520240863,-627.70230132,0.00016438,2]
[400406688,1767520240873,-627.70230132,0.00016438,2]
[400406690,1767520240883,-627.70230132,0.00016438,2]
[400406692,1767520240894,-627.70230132,0.00016438,2]
[400406694,1767520240903,-627.70230132,0.00016438,2]
[400406696,1767520240915,-627.70230132,0.00016438,2]
[400406698,1767520240927,-627.70230132,0.00016438,2]
[400406700,1767520240937,-627.70230132,0.00016438,2]
[400406702,1767520240947,-627.70230132,0.00016438,2]
[400406704,1767520240957,-627.70230132,0.00016438,2]
[400406706,1767520240968,-627.70230132,0.00016438,2]
[400406708,1767520240978,-627.70230132,0.00016438,2]
[400406710,1767520240988,-627.70230132,0.00016438,2]
[400406712,1767520240998,-627.70230132,0.00016438,2]
[400406726,1767520241148,-627.70230132,0.00016438,2]
[400406728,1767520241159,-627.70230132,0.00016438,2]
[400406730,1767520241169,-627.70230132,0.00016438,2]
[400406732,1767520241178,-627.70230132,0.00016438,2]
[400406734,1767520241188,-627.70230132,0.00016438,2]
[400406736,1767520241197,-627.70230132,0.00016438,2]
[400406738,1767520241207,-627.70230132,0.00016438,2]
[400406739,1767520241217,-627.70230132,0.00016438,2]
[400406741,1767520241227,-154.78144631,0.00016438,2]
[400406743,1767520241237,-151.0,0.00016438,2]
[400406745,1767520241247,-151.0,0.00016438,2]
[400406747,1767520241256,-151.0,0.00016438,2]
[400406749,1767520241266,-284.637823,0.00016438,2]
[400406751,1767520241276,-164.02555298,0.00016438,2]
[400406753,1767520241285,-151.346987,0.00016438,2]
[400406755,1767520241294,-151.346987,0.00016438,2]
[400406757,1767520241304,-151.346987,0.00016438,2]
[400406759,1767520241314,-151.346987,0.00016438,2]
[400406761,1767520241323,-183.49,0.0001644,2]
[400406762,1767520241333,-183.49,0.0001644,2]
[400406764,1767520241343,-183.49,0.0001644,2]
[400406766,1767520241353,-183.49,0.0001644,2]
[400406768,1767520241363,-1000.0,0.00016463,2]
[400406770,1767520241373,-200.0,0.00016473,2]
[400406772,1767520241383,-2145.0,0.00016473,2]
[400406774,1767520241392,-416.0,0.00016473,2]
[400406776,1767520241401,-178.0,0.00016473,2]
[400406777,1767520241411,-1080.9998185,0.00016608,2]
[400406779,1767520241420,-1152.0,0.00016612,2]
[400406781,1767520241431,-160.0,0.00016675,3]
[400406783,1767520241441,-626.2,0.00016712,2]
[400406785,1767520241451,-30000.0,0.000168,3]
[400406787,1767520241461,-151.346987,0.000168,2]
[400406789,1767520241470,-151.346987,0.000168,2]
[400406791,1767520241480,-151.346987,0.000168,2]
[400406793,1767520241493,-151.346987,0.000168,2]
[400406795,1767520241502,-160.0,0.00016901,4]
[400406797,1767520241512,-626.2,0.00016986,2]
[400406799,1767520241521,-45641.08933474,0.00017,2]
[400406860,1767520244945,-2446.65668567,0.00017,2]
[400406861,1767520244956,-2086.3943386,0.00017,2]
[400406900,1767520371711,-305.07752881,0.00011311,2]
[400406901,1767520371743,-500.0,0.00011311,2]
[400406902,1767520371772,-500.0,0.00011311,2]
[400406903,1767520371801,-376.38821104,0.00011311,2]
[400406904,1767520371833,-500.0,0.00011311,2]
[400406905,1767520371862,-500.0,0.00011311,2]
[400406906,1767520371894,-500.0,0.00011311,2]
[400406907,1767520371925,-500.0,0.00011311,2]
[400406908,1767520371956,-500.0,0.00011311,2]
[400406909,1767520371989,-500.0,0.00011311,2]
[400406910,1767520372018,-137.0785203,0.00011311,2]
[400406911,1767520372155,-362.9214797,0.00011311,2]
[400406912,1767520372186,-500.0,0.00011311,2]
[400406913,1767520372217,-500.0,0.00011311,2]
[400406914,1767520372246,-500.0,0.00011311,2]
[400406915,1767520372277,-500.0,0.00011311,2]
[400406916,1767520372308,-500.0,0.00011311,2]
[400406917,1767520372338,-500.0,0.00011311,2]
[400406918,1767520372368,-500.0,0.00011311,2]
[400406919,1767520372400,-500.0,0.00011311,2]
[400406920,1767520372432,-213.85380904,0.00011311,2]
[400406921,1767520372461,-158.84696461,0.00011311,2]
[400406922,1767520372489,-225.49621652,0.00011311,2]
[400406923,1767520381372,-1455.65074486,0.00011311,2]
[400406924,1767520389104,155.0,8.5e-05,2]
[400406926,1767520395425,-300.0,0.0001131,2]
[400406927,1767520395461,-9400.01,0.00011311,2]
[400406928,1767520431506,307.65524511,0.00030137,120]
[400406938,1767520505464,427.49717238,0.00011281,2]
[400406942,1767520606628,200.15,0.0001,2]
[400406962,1767520878231,9372.36282762,0.00010311,2]
[400406963,1767520878254,10000.01,0.00010311,2]
[400406964,1767520878284,6360.52182958,0.00010311,2]
[400406981,1767520903369,164.601,0.00011086,2]
[400406984,1767521060019,-151.0,0.000113,2]
[400406985,1767521060048,-151.0,0.000113,2]
[400406986,1767521060078,-579.0,0.000113,2]
[400406987,1767521060110,-310.93847776,0.00011305,2]
[400406988,1767521060138,-300.0,0.00011309,2]
[400406989,1767521060169,-1200.0,0.0001131,2]
[400406990,1767521060199,-300.0,0.0001131,2]
[400406991,1767521060229,-1200.0,0.0001131,2]
[400406992,1767521082666,200.0,0.0002805,120]
[400406993,1767521082975,200.0,0.0002805,120]
[400406994,1767521084095,200.0,0.0002805,120]
[400406995,1767521084506,200.0,0.0002805,120]
[400406996,1767521085749,200.0,0.0002805,120]
[400406997,1767521086062,200.0,0.0002805,120]
[400406998,1767521089695,675.21873935,0.00010962,2]
[400407033,1767521279592,168.32,8.991e-05,2]
[400407045,1767521335292,-300.0,0.0001131,2]
[400407046,1767521335323,-480.0,0.0001131,2]
[400407047,1767521335352,-304.71970821,0.00011311,2]
[400407048,1767521335385,-500.0,0.00011311,2]
[400407049,1767521335414,-298.96355631,0.00011311,2]
[400407050,1767521335446,-193.9011719,0.00011311,2]
[400407051,1767521335598,-500.0,0.00011311,2]
[400407052,1767521335631,-500.0,0.00011311,2]
[400407053,1767521335663,-500.0,0.00011311,2]
[400407054,1767521335693,-500.0,0.00011311,2]
[400407055,1767521335722,-500.0,0.00011311,2]
[400407096,1767521342645,300.0,0.00011311,2]
[400407097,1767521354061,544.84112716,0.00011211,2]
[400407098,1767521354086,10000.01,0.00011211,2]
[400407099,1767521354112,10000.01,0.00011211,2]
[400407100,1767521354139,10000.01,0.00011211,2]
[400407101,1767521354163,10000.01,0.00011211,2]
[400407102,1767521354190,10000.01,0.00011211,2]
[400407103,1767521354341,10000.01,0.00011211,2]
[400407104,1767521354369,10000.01,0.00011211,2]
[400407105,1767521354394,10000.01,0.00011211,2]
[400407106,1767521354420,10000.01,0.00011211,2]
[400407107,1767521361125,-387.53459801,0.00011211,2]
[400407108,1767521365754,-388.64749322,0.00011211,2]
[400407109,1767521368587,-493.02423372,0.00011211,2]
[400407110,1767521370285,-164.62526406,0.00011211,2]
[400407111,1767521373284,-174.02008125,0.00011211,2]
[400407112,1767521375988,-174.46640061,0.00011211,2]
[400407113,1767521378709,-269.06678174,0.00011211,2]
[400407114,1767521379001,-3451.79034839,0.00011211,2]
[400407115,1767521379141,-10000.01,0.00011211,2]
[400407116,1767521379270,-10000.01,0.00011211,2]
[400407117,1767521379362,-10000.01,0.00011211,2]
[400407118,1767521380095,-160.24657823,0.00011211,2]
[400407119,1767521382220,-243.28702116,0.00011211,2]
[400407120,1767521384940,-317.83490209,0.00011211,2]
[400407121,1767521386133,-10000.01,0.00011211,2]
[400407122,1767521386249,-10000.01,0.00011211,2]
[400407123,1767521386369,-10000.01,0.00011211,2]
[400407124,1767521386457,1100.73636077,0.0001103,2]
[400407125,1767521386497,-10000.01,0.00011211,2]
[400407126,1767521386744,-10000.01,0.00011211,2]
[400407127,1767521386927,-10000.01,0.00011211,2]
[400407128,1767521387000,-300.00000003,0.00011211,2]
[400407129,1767521387127,-10000.01,0.00011211,2]
[400407130,1767521387310,-10000.01,0.00011211,2]
[400407131,1767521387529,-10000.01,0.00011211,2]
[400407132,1767521387722,-10000.01,0.00011211,2]
[400407133,1767521387822,-10000.01,0.00011211,2]
[400407134,1767521387959,-10000.01,0.00011211,2]
[400407135,1767521388097,-10000.01,0.00011211,2]
[400407136,1767521388210,-10000.01,0.00011211,2]
[400407137,1767521388499,-10000.01,0.00011211,2]
[400407138,1767521389335,-228.08421644,0.00011211,2]
[400407139,1767521393594,-255.36630475,0.00011211,2]
[400407140,1767521395113,228.08421644,0.0001103,2]
[400407141,1767521396302,-211.95799355,0.00011211,2]
[400407142,1767521398944,-360.45017998,0.00011211,2]
[400407143,1767521400363,-215.18080952,0.00011211,2]
[400407145,1767521402372,-231.53388265,0.00011211,2]
[400407146,1767521405307,-300.0,0.0001121,2]
[400407147,1767521405330,-64.56012056,0.0001121,2]
[400407150,1767521409697,-235.62681107,0.0001121,2]
[400407153,1767521411846,4817.75068777,0.0001103,2]
[400407154,1767521412209,-277.81306837,0.0001121,2]
[400407155,1767521412232,-22.18693163,0.0001121,2]
[400407156,1767521413626,-159.19534197,0.0001121,2]
[400407158,1767521415843,-272.25525718,0.0001121,2]
[400407159,1767521417990,-314.16268127,0.0001121,2]
[400407160,1767521419818,467.3242983,0.0001103,2]
[400407161,1767521420122,-251.19992171,0.0001121,2]
[400407162,1767521420565,-180.99986624,0.0001121,2]
[400407163,1767521420602,-9638.01026752,0.00011211,2]
[400407164,1767521420832,-10000.01,0.00011211,2]
[400407165,1767521420972,-10000.01,0.00011211,2]
[400407166,1767521421284,-10000.01,0.00011211,2]
[400407167,1767521421473,-10000.01,0.00011211,2]
[400407168,1767521421622,-10000.01,0.00011211,2]
[400407169,1767521421784,-10000.01,0.00011211,2]
[400407170,1767521422033,-443.12854039,0.00011211,2]
[400407171,1767521422068,-10000.01,0.00011211,2]
[400407173,1767521422224,-10000.01,0.00011211,2]
[400407177,1767521426051,-519.83686551,0.00011211,2]
[400407178,1767521428680,-1128.99157784,0.00011211,2]
[400407179,1767521429250,150.57,9.174e-05,2]
[400407180,1767521429636,225.85,9.591e-05,2]
[400407181,1767521430130,301.14,0.00010008,2]
[400407182,1767521430527,-10000.01,0.00011211,2]
[400407183,1767521430564,376.42,0.00010425,2]
[400407184,1767521430936,451.71,0.00010842,2]
[400407216,1767521435655,2232.213552,0.0001103,2]
[400407222,1767521438600,-445757.96700893,0.00011211,2]
[400407264,1767521441139,-3e-08,0.00011211,2]
[400407266,1767521441151,-117762.94312523,0.00011211,2]
[400407268,1767521441162,-6625.0,0.00011211,2]
[400407330,1767521444403,5000.0,0.0001103,2]
[400407332,1767521444934,-255.28721074,0.00011211,2]
[400407334,1767521444946,-989.31614597,0.00011211,2]
[400407374,1767521449541,-10000.01,0.00011211,2]
[400407375,1767521450271,-10000.01,0.00011211,2]
[400407376,1767521450430,-10000.01,0.00011211,2]
[400407377,1767521467595,5000.0,0.0001103,2]
[400407378,1767521474723,-300.0,0.0001121,2]
[400407379,1767521474761,-9400.01,0.00011211,2]
[400407380,1767521482814,-471.66520894,0.00011211,2]
[400407381,1767521484741,-544.06,0.00011211,2]
[400407382,1767521486312,-250.67977416,0.00011211,2]
[400407383,1767521491248,5000.0,0.00011191,2]
[400407384,1767521503327,329.72,7.282e-05,2]
[400407385,1767521503742,659.44,7.628e-05,2]
[400407386,1767521504219,989.17,7.975e-05,2]
[400407387,1767521504558,1318.89,8.322e-05,2]
[400407388,1767521504964,1648.61,8.669e-05,2]
[400407389,1767521505454,54.18,9.015e-05,2]
[400407390,1767521505477,1924.15,9.015e-05,2]
[400407391,1767521505910,2308.05,9.362e-05,2]
[400407392,1767521506338,2637.78,9.709e-05,2]
[400407393,1767521506610,168.05,0.0001,2]
[400407394,1767521506753,2961.98,0.00010056,2]
[400407395,1767521506781,5.52,0.00010056,2]
[400407396,1767521507163,3297.22,0.00010402,2]
[400407397,1767521508574,168.05,0.000102,2]
[400407398,1767521510458,168.05,0.000104,2]
[400407399,1767521512380,168.05,0.000106,2]
[400407400,1767521514273,168.05,0.000108,2]
[400407401,1767521514381,5000.0,0.00011191,2]
[400407402,1767521516622,168.05,0.00011,2]
[400407404,1767521530519,3623.7921649,0.00011191,2]
[400407405,1767521538431,5000.0,0.00011191,2]
[400407406,1767521543888,179.52960977,0.00010786,2]
[400407407,1767521554689,578.52269897,0.00011191,2]
[400407408,1767521563153,5000.0,0.00011191,2]
[400407410,1767521580303,253.62,7.774e-05,2]
[400407411,1767521580725,507.25,8.145e-05,2]
[400407413,1767521581367,760.87,8.515e-05,2]
[400407414,1767521581593,1014.49,8.885e-05,2]
[400407415,1767521582250,1268.12,9.255e-05,2]
[400407416,1767521582672,437.60769126,9.625e-05,2]
[400407417,1767521582695,1084.13230874,9.625e-05,2]
[400407418,1767521583114,1775.37,9.996e-05,2]
[400407419,1767521583527,2028.99,0.00010366,2]
[400407420,1767521584015,2282.61,0.00010736,2]
[400407421,1767521584413,2536.24,0.00011106,2]
[400407422,1767521586671,292.66769126,0.00011191,2]
[400407423,1767521586694,4707.33230874,0.00011191,2]
[400407425,1767521609566,5000.0,0.00011191,2]
[400407427,1767521615030,-300.0,0.00011209,2]
[400407428,1767521615059,-614.44650578,0.0001121,2]
[400407429,1767521615085,-614.44650578,0.0001121,2]
[400407430,1767521615112,-614.44650578,0.0001121,2]
[400407431,1767521615135,-1200.0,0.0001121,2]
[400407432,1767521615164,-7640.75605818,0.00011211,2]
[400407433,1767521615188,-306.45983839,0.00011373,2]
[400407434,1767521615213,-500.0,0.00011535,2]
[400407435,1767521615237,-411.01589116,0.00011535,2]
[400407436,1767521615265,-621.27368917,0.00011535,2]
[400407437,1767521615289,-500.0,0.00011535,2]
[400407438,1767521615315,-621.27368917,0.00011535,2]
[400407439,1767521615343,-621.27368917,0.00011535,2]
[400407440,1767521615369,-621.27368917,0.00011535,2]
[400407441,1767521615395,-621.27368917,0.00011535,2]
[400407442,1767521615422,-621.27368917,0.00011535,2]
[400407443,1767521615449,-621.27368917,0.00011535,2]
[400407444,1767521615474,-621.27368917,0.00011535,2]
[400407445,1767521615499,-368.24716154,0.00011535,2]
[400407446,1767521615525,-621.27368917,0.00011535,2]
[400407447,1767521615549,-500.0,0.00011535,2]
[400407448,1767521615573,-500.0,0.00011535,2]
[400407449,1767521615598,-500.0,0.00011535,2]
[400407450,1767521615624,-500.0,0.00011535,2]
[400407451,1767521615651,-500.0,0.00011535,2]
[400407452,1767521615675,-500.0,0.00011535,2]
[400407453,1767521615700,-500.0,0.00011535,2]
[400407454,1767521615725,-500.0,0.00011535,2]
[400407455,1767521615750,-500.0,0.00011535,2]
[400407456,1767521615774,-500.0,0.00011535,2]
[400407457,1767521615798,-500.0,0.00011535,2]
[400407458,1767521615823,-500.0,0.00011535,2]
[400407459,1767521615848,-338.71833086,0.00011535,2]
[400407460,1767521616059,-161.28166914,0.00011535,2]
[400407461,1767521616085,-500.0,0.00011535,2]
[400407462,1767521616111,-621.27368917,0.00011535,2]
[400407463,1767521616222,-500.0,0.00011535,2]
[400407464,1767521616268,-500.0,0.00011535,2]
[400407465,1767521616295,-500.0,0.00011535,2]
[400407466,1767521616320,-500.0,0.00011535,2]
[400407467,1767521616344,-500.0,0.00011535,2]
[400407468,1767521616367,-500.0,0.00011535,2]
[400407469,1767521616391,-500.0,0.00011535,2]
[400407470,1767521616416,-500.0,0.00011535,2]
[400407471,1767521616441,-500.0,0.00011535,2]
[400407472,1767521616465,-500.0,0.00011535,2]
[400407473,1767521616493,-621.27368917,0.00011535,2]
[400407474,1767521616518,-500.0,0.00011535,2]
[400407475,1767521616546,-500.0,0.00011535,2]
[400407476,1767521616572,-590.53275109,0.00011535,2]
[400407477,1767521616599,-500.0,0.00011535,2]
[400407478,1767521616625,-165.85138524,0.00011535,2]
[400407479,1767521616649,-154.81391505,0.00011535,2]
[400407480,1767521616673,-500.0,0.00011535,2]
[400407481,1767521616698,-500.0,0.00011535,2]
[400407482,1767521616722,-500.0,0.00011535,2]
[400407483,1767521616748,-389.90859484,0.00011535,2]
[400407484,1767521616774,-500.0,0.00011535,2]
[400407485,1767521616799,-500.0,0.00011535,2]
[400407486,1767521616825,-500.0,0.00011535,2]
[400407487,1767521616853,-500.0,0.00011535,2]
[400407488,1767521616897,-500.0,0.00011535,2]
[400407489,1767521616947,-621.27368917,0.00011535,2]
[400407490,1767521616999,-500.0,0.00011535,2]
[400407491,1767521617048,-500.0,0.00011535,2]
[400407492,1767521617098,-500.0,0.00011535,2]
[400407493,1767521617146,-500.0,0.00011535,2]
[400407494,1767521617190,-500.0,0.00011535,2]
[400407495,1767521617237,-500.0,0.00011535,2]
[400407496,1767521617279,-500.0,0.00011535,2]